bitfinex/quotes_ETHUSD_20220310
["timestamp","ask_amount","ask_price","bid_price","bid_amount"]
[1646894090544,0.00694512,2590.9,2590.8,1.5]
[1646894091545,0.00694512,2590.9,2590.8,1.58906351]
[1646894092800,0.00694512,2590.9,2590.8,1.5]
[1646894093290,0.00694512,2590.9,2590.7,174.0]
[1646894094493,0.00694512,2590.9,2590.8,0.07417294]
[1646894095095,0.0097641,2590.9,2590.7,174.0]
[1646894095996,0.00694512,2590.9,2590.7,174.0]
[1646894096195,0.0097641,2590.9,2590.7,174.0]
[1646894097054,0.96631,2590.8,2590.7,174.0]
[1646894098355,0.00694512,2590.9,2590.7,174.0]
[1646894098762,0.00958298,2590.9,2590.7,174.0]
[1646894099556,0.97324512,2590.9,2590.7,174.0]
[1646894099759,0.97606781,2590.9,2590.7,174.0]
[1646894100691,0.97324512,2590.9,2590.7,174.0]
[1646894100991,0.97606781,2590.9,2590.7,174.0]
[1646894102093,0.97324512,2590.9,2590.7,174.0]
[1646894102302,0.97606781,2590.9,2590.7,173.95]
[1646894103295,0.97324512,2590.9,2590.7,173.95]
[1646894103498,0.97606781,2590.9,2590.7,173.95]
[1646894104341,0.97324512,2590.9,2590.7,173.95]
[1646894104541,0.97606781,2590.9,2590.5,1.19332974]
[1646894105542,0.97324512,2590.9,2590.5,1.19332974]
[1646894105743,0.97324512,2590.9,2590.5,0.69332974]
[1646894105943,0.0028227,2590.8,2590.5,0.69332974]
[1646894106143,0.0028227,2590.8,2590.4,1.5]
[1646894106749,0.97324512,2590.9,2590.4,1.5]
[1646894107150,0.0028226,2590.8,2590.3,2.7189]
[1646894107550,0.0028226,2590.8,2590.4,0.86974761]
[1646894107991,0.97324512,2590.9,2590.4,0.86974761]
[1646894108192,0.0028226,2590.8,2590.4,0.86974761]
[1646894109298,0.97324512,2590.9,2590.4,0.86974761]
[1646894109499,0.0028226,2590.8,2590.4,0.86974761]
[1646894110400,0.97324512,2590.9,2590.4,0.86974761]
[1646894110599,0.0028226,2590.8,2590.4,0.86974761]
[1646894111645,0.97324512,2590.9,2590.4,0.86974761]
[1646894111845,0.0028226,2590.8,2590.4,0.86974761]
[1646894112750,0.97324512,2590.9,2590.4,0.86974761]
[1646894113248,0.0028226,2590.8,2590.4,0.86974761]
[1646894113848,0.0028226,2590.8,2590.5,0.09012446]
[1646894114049,0.00694512,2590.9,2590.5,0.09012446]
[1646894114249,0.0028226,2590.8,2590.6,1.5]
[1646894115148,0.00694512,2590.9,2590.5,0.09012446]
[1646894115398,0.00694512,2590.9,2590.4,2.36974761]
[1646894115594,0.0028227,2590.8,2590.4,2.36974761]
[1646894116295,1.00568992,2591.0,2590.4,2.36974761]
[1646894116296,0.02778048,2591.2,2590.7,174.0]
[1646894116501,0.01255488,2591.6,2591.0,3.0]
[1646894116700,8.829e-05,2591.3,2591.1,18.04300227]
[1646894116900,8.829e-05,2591.3,2591.2,24.12037808]
[1646894116901,0.04101478,2591.3,2591.2,24.12037808]
[1646894117100,1.478e-05,2591.3,2591.2,29.08437808]
[1646894117302,5.488e-05,2591.6,2591.2,31.77646831]
[1646894117507,0.05331022,2592.5,2591.6,185.77]
[1646894117704,0.05331022,2592.5,2591.7,21.01672329]
[1646894117904,0.05331022,2592.5,2591.8,0.06928514]
[1646894118101,0.05331022,2592.5,2592.4,1.5]
[1646894118303,1.022e-05,2592.5,2592.4,8.52797398]
[1646894118505,1.022e-05,2592.5,2592.4,8.82797398]
[1646894118805,1.022e-05,2592.5,2592.4,4.20791705]
[1646894119246,1.79e-05,2592.6,2592.4,15.97791705]
[1646894119447,1.79e-05,2592.6,2592.5,16.31937258]
[1646894119645,1.79e-05,2592.6,2592.5,5.01337258]
[1646894119846,1.79e-05,2592.6,2592.5,0.464]
[1646894120045,1.79e-05,2592.6,2592.5,12.234]
[1646894120246,1.79e-05,2592.6,2592.5,0.464]
[1646894121248,1.79e-05,2592.6,2592.5,1.964]
[1646894121448,1.79e-05,2592.6,2592.5,1.5]
[1646894123298,1.79e-05,2592.6,2592.5,1.8]
[1646894123898,0.00284106,2592.7,2592.6,89.27]
[1646894124097,0.00284106,2592.7,2592.6,89.734]
[1646894124298,0.00284106,2592.7,2592.6,91.234]
[1646894124902,0.03670536,2593.0,2592.7,11.77]
[1646894125103,0.03670536,2593.0,2592.8,1.500541]
[1646894125401,0.03670536,2593.0,2592.8,1.800541]
[1646894126006,0.03670536,2593.0,2592.8,1.036541]
[1646894126205,0.03932419,2593.0,2592.9,1.5]
[1646894127248,0.03670536,2593.0,2592.9,1.5]
[1646894132101,0.03670536,2593.0,2592.9,1.58697184]
[1646894133505,0.03670536,2593.0,2592.9,2.05097184]
[1646894134053,0.03670536,2593.0,2592.9,1.964]
[1646894134657,0.03670536,2593.0,2592.9,2.0486019]
[1646894135260,0.03670536,2593.0,2592.9,1.0]
[1646894136461,1.00226536,2593.0,2592.9,1.0]
[1646894136862,0.03670536,2593.0,2592.9,1.0]
[1646894137264,0.03670536,2593.0,2592.5,4.47146736]
[1646894137462,0.03670536,2593.0,2592.6,0.764]
[1646894137804,0.03670536,2593.0,2592.7,0.464]
[1646894138401,0.03921297,2593.0,2592.7,1.6576]
[1646894138601,0.03921297,2593.0,2592.7,2.62298]
[1646894138998,0.03921297,2593.0,2592.7,7.04739416]
[1646894139200,0.03921297,2593.0,2592.8,13.0352737]
[1646894139399,0.0289143,2593.3,2593.0,12.1557496]
[1646894139601,0.0289143,2593.3,2593.2,11.7359496]
[1646894139799,1.43e-05,2593.3,2593.2,16.62436376]
[1646894140000,1.43e-05,2593.3,2593.2,16.92436376]
[1646894140399,1.43e-05,2593.3,2593.2,5.18841416]
[1646894141200,1.43e-05,2593.3,2593.2,0.764]
[1646894142050,1.43e-05,2593.3,2593.2,0.464]
[1646894143153,1.43e-05,2593.3,2593.2,5.97500697]
[1646894143353,1.43e-05,2593.3,2593.2,18.04500697]
[1646894143555,1.43e-05,2593.3,2593.2,1.85059281]
[1646894144754,1.43e-05,2593.3,2593.2,6.27500697]
[1646894145157,1.43e-05,2593.3,2593.2,18.04500697]
[1646894145393,1.43e-05,2593.3,2593.2,6.27500697]
[1646894145592,0.00284843,2593.4,2593.2,6.27500697]
[1646894145993,0.00284843,2593.4,2593.3,4.42441416]
[1646894146197,0.00284843,2593.4,2593.3,16.19441416]
[1646894146394,0.00284843,2593.4,2593.2,2.81573281]
[1646894146597,0.017209,2593.5,2593.2,2.81573281]
[1646894146797,0.02005743,2593.5,2593.2,2.81573281]
[1646894147499,0.02005743,2593.5,2593.2,14.58573281]
[1646894147797,0.017209,2593.5,2593.2,19.01014697]
[1646894147997,5.743e-05,2593.5,2593.3,0.9650819]
[1646894148199,0.0729585,2593.7,2593.6,11.77]
[1646894148397,0.0729585,2593.7,2593.6,12.234]
[1646894148605,0.0729585,2593.7,2593.6,14.45938956]
[1646894148802,0.0729585,2593.7,2593.6,14.75938956]
[1646894149054,0.0729585,2593.7,2593.6,19.50450372]
[1646894149255,0.0729585,2593.7,2593.6,15.08008956]
[1646894149856,0.47028282,2594.4,2594.1,0.4387]
[1646894150058,3.41188556,2595.1,2593.8,0.7472]
[1646894150256,0.63878556,2595.1,2593.9,4.42441416]
[1646894150458,0.63878556,2595.1,2593.9,17.28491416]
[1646894150658,0.00782964,2595.0,2594.1,78.0]
[1646894150862,0.00782964,2595.0,2594.7,1.05077941]
[1646894151064,0.06840485,2595.5,2594.8,96.0]
[1646894151264,0.05782324,2595.3,2594.8,96.0]
[1646894151665,0.03131856,2595.3,2594.9,77.5]
[1646894151865,0.03131856,2595.3,2594.9,80.39378]
[1646894152065,0.07252582,2595.7,2595.1,78.0]
[1646894152266,0.07252582,2595.7,2595.1,78.464]
[1646894153504,0.07252582,2595.7,2595.6,1.11654006]
[1646894153706,0.09180542,2595.7,2595.6,1.11654006]
[1646894156208,0.0172691,2596.0,2595.7,89.5]
[1646894156544,0.03567258,2596.0,2595.7,91.42872]
[1646894156753,0.03567258,2596.0,2595.8,84.0]
[1646894156754,0.03680696,2596.0,2595.8,84.0]
[1646894156953,0.02576372,2596.4,2595.9,93.8609979]
[1646894157149,0.03112819,2596.7,2595.9,95.2892679]
[1646894157150,0.00614552,2596.5,2595.9,95.2892679]
[1646894157353,0.00854736,2596.5,2596.4,1.05017478]
[1646894157551,0.01612576,2596.5,2596.4,18.71477268]
[1646894157751,0.03225152,2596.5,2596.4,1.61815922]
[1646894157952,0.03225152,2596.5,2596.4,1.0696]
[1646894158250,0.03225152,2596.5,2596.4,3.96135]
[1646894158652,0.04724983,2597.0,2596.4,2.89175]
[1646894158853,0.00283148,2596.6,2596.5,1.02002513]
[1646894159852,0.01691264,2596.6,2596.5,1.02002513]
[1646894161703,1.264e-05,2596.6,2596.5,5.38102303]
[1646894161909,0.01049331,2597.1,2596.5,5.38102303]
[1646894161910,0.03382528,2597.1,2596.6,173.5]
[1646894162203,0.03382528,2597.1,2596.6,175.37615]
[1646894162805,0.03382528,2597.1,2597.0,1.02545284]
[1646894163005,0.03382528,2597.1,2596.6,175.37615]
[1646894163204,0.03382528,2597.1,2596.6,174.46385]
[1646894164047,0.03382528,2597.1,2596.9,2.04870084]
[1646894164250,0.03382528,2597.1,2596.9,0.96396]
[1646894164752,0.03382528,2597.1,2596.8,1.92792]
[1646894165352,0.37260015,2597.0,2596.9,0.0012]
[1646894165755,0.37260015,2597.0,2596.9,0.96516]
[1646894165957,0.40642543,2597.0,2596.9,0.0012]
[1646894166557,18.5,2596.9,2596.3,0.00094719]
[1646894166956,18.53382528,2596.9,2596.4,0.96437]
[1646894167812,0.96444,2596.8,2596.5,3.04061749]
[1646894168401,0.37260015,2596.7,2596.5,3.04061749]
[1646894169005,0.40642543,2596.7,2596.5,3.04061749]
[1646894170205,0.00260181,2597.2,2596.6,90.39198]
[1646894170407,0.00260181,2597.2,2596.7,4.31493972]
[1646894170606,0.07167792,2597.3,2596.7,4.31493972]
[1646894170905,0.00279945,2597.2,2596.6,90.39198]
[1646894171106,0.00279945,2597.2,2596.7,0.964]
[1646894171307,0.00279945,2597.2,2597.1,0.96710469]
[1646894171558,0.02447737,2597.3,2597.1,0.96710469]
[1646894172160,0.02447737,2597.3,2596.9,0.96396]
[1646894172365,0.96404,2597.2,2596.9,0.96396]
[1646894173364,0.96404,2597.2,2597.1,1.07308769]
[1646894173565,0.02447737,2597.3,2597.1,1.07308769]
[1646894174465,0.02707647,2597.3,2597.1,1.07308769]
[1646894175312,0.02707647,2597.3,2596.9,0.96396]
[1646894175507,0.02447737,2597.3,2596.9,0.96396]
[1646894175807,0.96404,2597.2,2596.9,0.96396]
[1646894177008,0.96404,2597.2,2596.8,1.92888542]
[1646894177208,0.96404,2597.2,2596.8,0.00096542]
[1646894177209,4.42804,2597.2,2596.8,0.00096542]
[1646894177808,4.42804,2597.2,2596.5,1.92852]
[1646894178207,4.42804,2597.2,2596.8,0.00096542]
[1646894178408,18.5,2597.1,2596.5,0.85639773]
[1646894178607,1.92879,2597.0,2596.5,0.85639773]
[1646894178808,0.96421,2596.8,2596.5,0.85639773]
[1646894179050,0.04520876,2596.7,2596.5,0.85639773]
[1646894179450,0.0491992,2596.7,2596.5,0.85639773]
[1646894179653,0.03472704,2597.3,2596.5,0.85639773]
[1646894179851,2.00000875,2597.4,2596.5,0.85639773]
[1646894180252,2.00000875,2597.4,2596.6,1.03952987]
[1646894180653,0.96419,2597.1,2596.6,1.03952987]
[1646894181256,0.96419,2597.1,2596.7,0.96417]
[1646894181962,0.96419,2597.1,2597.0,1.05458759]
[1646894182564,0.96419,2597.1,2596.9,1.92809]
[1646894183695,0.96419,2597.1,2597.0,1.2339392]
[1646894184896,0.96419,2597.1,2596.9,1.92809]
[1646894185103,0.96419,2597.1,2596.5,1.9284]
[1646894185299,0.04526922,2597.0,2596.5,1.9284]
[1646894186100,0.04526922,2597.0,2596.7,0.95308157]
[1646894186855,0.04526922,2597.0,2596.7,1.91718157]
[1646894187054,0.04526922,2597.0,2596.7,0.01101843]
[1646894187757,0.04526922,2597.0,2596.7,0.01199382]
[1646894188355,1.97370922,2597.0,2596.7,0.01199382]
[1646894188556,0.0526832,2596.9,2596.7,0.01199382]
[1646894188757,0.0526832,2596.9,2596.7,0.01101843]
[1646894189155,0.0526832,2596.9,2596.7,1.05540959]
[1646894189756,0.04527615,2597.2,2596.7,1.05540959]
[1646894189959,0.12515602,2597.4,2596.7,1.05540959]
[1646894190157,0.00282416,2597.2,2596.7,1.05540959]
[1646894191014,0.12515602,2597.4,2596.7,1.05540959]
[1646894191203,0.00260126,2597.2,2596.7,1.05540959]
[1646894192208,1.01515334,2597.3,2596.7,1.05540959]
[1646894192405,1.01515334,2597.3,2596.7,0.01101843]
[1646894192610,0.00260126,2597.2,2596.7,0.01101843]
[1646894193506,1.01515334,2597.3,2596.7,0.01101843]
[1646894193707,0.00289382,2597.2,2596.8,0.00098763]
[1646894193908,0.00289382,2597.2,2596.8,1.92910763]
[1646894194148,0.00289382,2597.2,2596.8,0.87369804]
[1646894194548,0.00289382,2597.2,2597.0,1.12071565]
[1646894194750,0.05113334,2597.3,2597.0,1.12071565]
[1646894194948,0.00289387,2597.2,2597.0,1.12071565]
[1646894195950,1.99997875,2597.4,2597.0,1.12071565]
[1646894196148,0.00289397,2597.2,2597.0,1.12071565]
[1646894196350,0.00289397,2597.2,2597.1,4.28127406]
[1646894196551,0.00289397,2597.2,2597.0,1.12071565]
[1646894197053,0.07188875,2597.4,2597.0,1.12071565]
[1646894197252,0.00289397,2597.2,2597.0,1.12071565]
[1646894197652,0.07188875,2597.4,2597.1,37.0]
[1646894197899,0.07188875,2597.4,2597.2,2.89124]
[1646894199599,0.07188875,2597.4,2597.2,7.17251406]
[1646894199899,0.07188875,2597.4,2597.2,2.89124]
[1646894201403,0.07188875,2597.4,2597.2,1.34895089]
[1646894201405,4.34719427,2597.4,2597.2,1.34895089]
[1646894201658,4.34719427,2597.4,2596.9,0.96405]
[1646894201857,0.12088186,2597.4,2596.9,0.96405]
[1646894202459,0.12377581,2597.4,2597.0,0.00099481]
[1646894202657,0.12377581,2597.4,2597.0,1.03269853]
[1646894203158,0.12088186,2597.4,2597.0,1.03170372]
[1646894203360,0.00289396,2597.3,2597.0,1.03269853]
[1646894204359,0.68625158,2597.4,2597.0,1.03170372]
[1646894204562,0.00289391,2597.3,2597.0,1.03269853]
[1646894205169,0.00289391,2597.3,2597.0,0.00099481]
[1646894205604,0.96411,2597.3,2596.9,0.96405]
[1646894205801,0.00289391,2597.3,2597.0,0.00099481]
[1646894206201,0.00289391,2597.3,2597.1,1.1741268]
[1646894206602,0.68625158,2597.4,2597.1,1.1741268]
[1646894206901,0.00252379,2597.3,2597.1,1.1741268]
[1646894207902,0.63725847,2597.4,2597.1,1.1741268]
[1646894208402,0.00252379,2597.3,2597.1,1.1741268]
[1646894209049,0.07188875,2597.4,2597.1,1.1741268]
[1646894209450,0.00252379,2597.3,2597.1,1.1741268]
[1646894210349,0.07188875,2597.4,2597.1,1.1741268]
[1646894210552,0.00252341,2597.3,2597.1,1.1741268]
[1646894211450,0.07188875,2597.4,2597.1,1.1741268]
[1646894211854,0.00254719,2597.3,2597.1,1.1741268]
[1646894212458,0.07188875,2597.4,2597.1,1.1741268]
[1646894214703,0.07188875,2597.4,2597.0,2.8915]
[1646894215304,0.07188875,2597.4,2597.0,1.7181878]
[1646894215504,0.07472664,2597.4,2597.0,1.7181878]
[1646894216207,0.07188875,2597.4,2597.0,1.7173732]
[1646894216653,0.07472664,2597.4,2597.0,1.7181878]
[1646894216852,0.07472664,2597.4,2597.1,1.05428076]
[1646894217452,0.07188875,2597.4,2597.1,1.05428076]
[1646894217653,0.07188875,2597.4,2597.0,1.71820548]
[1646894217854,0.07473199,2597.4,2597.0,1.71820548]
[1646894218655,0.07188875,2597.4,2597.0,1.7173732]
[1646894219056,0.07473194,2597.4,2597.0,1.71820548]
[1646894219758,0.07473194,2597.4,2597.0,2.73316633]
[1646894219956,0.07188875,2597.4,2597.0,2.73233405]
[1646894220156,0.07473194,2597.4,2597.0,2.73316633]
[1646894221218,0.07188875,2597.4,2597.0,2.73233405]
[1646894221420,0.07188875,2597.4,2597.0,2.7331624]
[1646894221421,0.07473076,2597.4,2597.0,2.7331624]
[1646894222117,0.07473076,2597.4,2597.2,0.07201475]
[1646894222317,0.07188875,2597.4,2597.0,2.22576183]
[1646894222518,0.07473076,2597.4,2597.0,2.22659018]
[1646894223118,0.14246507,2597.4,2597.0,2.22659018]
[1646894223318,9.52676715,2597.5,2597.2,0.96394]
[1646894223921,9.52676715,2597.5,2597.2,1.03205056]
[1646894224149,9.52676715,2597.5,2597.3,2.96839159]
[1646894224349,9.52676715,2597.5,2597.4,0.99872783]
[1646894224649,9.52676715,2597.5,2597.4,5.30726944]
[1646894224650,5.36184987,2597.5,2597.4,5.30726944]
[1646894224851,0.0592575,2597.7,2597.4,5.30726944]
[1646894224852,0.0292756,2597.9,2597.7,78.0]
[1646894225050,0.517209,2598.7,2597.9,0.07498069]
[1646894225250,0.02870112,2598.6,2598.0,78.0]
[1646894225450,0.02870112,2598.6,2598.2,0.07283687]
[1646894225451,0.04035807,2598.4,2598.2,0.07283687]
[1646894225653,0.04105714,2598.8,2598.4,0.07757358]
[1646894226051,0.04105714,2598.8,2598.4,1.04087358]
[1646894226252,0.04105714,2598.8,2598.5,0.08634195]
[1646894226855,0.04105714,2598.8,2598.6,1.20402603]
[1646894227257,0.04105714,2598.8,2598.6,3.13091603]
[1646894227456,0.04365079,2598.8,2598.6,3.13091603]
[1646894228401,0.04105714,2598.8,2598.6,3.13091603]
[1646894228601,0.04395463,2598.8,2598.6,3.13091603]
[1646894228801,0.04395463,2598.8,2598.6,1.92689]
[1646894229201,0.04395463,2598.8,2598.6,0.38523697]
[1646894229602,0.04105714,2598.8,2598.6,0.38523697]
[1646894229904,0.04364866,2598.8,2598.6,0.38523697]
[1646894230403,1.00717866,2598.8,2598.6,0.38523697]
[1646894230602,0.0506993,2598.7,2598.6,0.38523697]
[1646894231202,0.0368993,2598.7,2598.6,0.38523697]
[1646894231853,0.0368993,2598.7,2598.5,1.9269]
[1646894233455,0.03979424,2598.7,2598.5,1.9269]
[1646894234259,0.03979424,2598.7,2598.5,1.35602539]
[1646894234556,0.0368993,2598.7,2598.5,1.35602539]
[1646894234760,0.03979424,2598.7,2598.5,1.35602539]
[1646894234958,0.00289494,2598.7,2598.5,1.35602539]
[1646894235600,0.04105714,2598.8,2598.5,2.23205535]
[1646894235803,0.00289494,2598.7,2598.5,2.23205535]
[1646894236202,0.00289494,2598.7,2598.5,1.35602539]
[1646894236603,0.04491995,2598.7,2598.5,1.35602539]
[1646894236807,0.04202501,2598.7,2598.5,1.35602539]
[1646894237005,0.04406969,2598.6,2598.3,1.92731]
[1646894237805,0.04406969,2598.6,2598.5,1.9269]
[1646894238106,0.04665941,2598.6,2598.5,1.9269]
[1646894239153,0.04406969,2598.6,2598.5,1.9269]
[1646894240754,0.04665941,2598.7,2598.6,1.20187564]
[1646894241152,0.04665941,2598.7,2598.5,1.9269]
[1646894241554,0.04406969,2598.7,2598.5,1.9269]
[1646894241757,0.04696387,2598.7,2598.5,1.9269]
[1646894242158,0.08861324,2598.7,2598.5,1.9269]
[1646894242557,0.08861324,2598.7,2598.5,1.34843509]
[1646894242813,0.08571906,2598.7,2598.3,1.92731]
[1646894242999,0.08830878,2598.7,2598.3,1.92731]
[1646894244004,0.08571906,2598.7,2598.3,1.92731]
[1646894244204,0.00258972,2598.6,2598.3,0.38477327]
[1646894244402,0.96368,2598.5,2598.3,0.38477327]
[1646894244606,0.0503912,2598.4,2598.3,0.38477327]
[1646894246956,0.6210418,2598.4,2598.3,1.45630872]
[1646894247757,0.00289345,2598.5,2598.3,1.45630872]
[1646894248762,0.04105714,2598.8,2598.3,1.45630872]
[1646894248963,0.04105714,2598.8,2598.7,1.01707367]
[1646894251607,0.04105714,2598.8,2598.6,0.96347]
[1646894251808,0.04105714,2598.8,2598.7,1.12192209]
[1646894252508,0.98285246,2598.9,2598.7,1.12192209]
[1646894252509,0.85745759,2598.9,2598.7,1.12192209]
[1646894252707,0.86030477,2598.9,2598.7,1.12192209]
[1646894253508,0.85745759,2598.9,2598.7,1.12192209]
[1646894253908,0.86030477,2598.9,2598.7,1.12192209]
[1646894254753,0.85745759,2598.9,2598.7,1.12192209]
[1646894254955,0.86028597,2598.9,2598.7,1.12192209]
[1646894255956,0.85745759,2598.9,2598.7,1.12192209]
[1646894256158,0.86028597,2598.9,2598.7,1.12192209]
[1646894256357,0.0414133,2598.9,2598.7,1.12192209]
[1646894257260,0.03858492,2598.9,2598.7,1.12192209]
[1646894257462,0.0414133,2598.9,2598.7,1.12192209]
[1646894258307,0.03858492,2598.9,2598.7,1.12192209]
[1646894258706,0.04139191,2598.9,2598.7,1.12192209]
[1646894259006,0.04139191,2598.9,2598.7,0.07151898]
[1646894259206,0.04139191,2598.9,2598.7,1.29531243]
[1646894259609,0.03858492,2598.9,2598.7,1.29531243]
[1646894259808,0.04139191,2598.9,2598.7,1.29531243]
[1646894260707,0.03858492,2598.9,2598.7,1.29531243]
[1646894261108,0.00280699,2598.9,2598.7,1.29531243]
[1646894261757,0.00280699,2598.9,2598.7,1.22379345]
[1646894261957,1.84749566,2599.1,2598.8,0.08215442]
[1646894262158,1.84749566,2599.1,2598.9,0.07452845]
[1646894262359,1.84749566,2599.1,2598.8,1.92683]
[1646894263459,1.8503074,2599.1,2598.8,1.92683]
[1646894264258,1.8503074,2599.1,2599.0,1.00002654]
[1646894264458,1.84749566,2599.1,2599.0,1.00002654]
[1646894264760,1.8503074,2599.1,2599.0,1.00002654]
[1646894264958,1.46623174,2599.1,2599.0,1.00002654]
[1646894265603,1.46342,2599.1,2599.0,1.00002654]
[1646894266202,1.46342,2599.1,2598.9,0.96341]
[1646894266403,0.96342,2599.1,2598.9,0.96341]
[1646894266606,0.5,2599.0,2598.9,0.96341]
[1646894267006,0.5,2599.0,2598.8,1.89021346]
[1646894267206,0.5,2599.0,2598.9,1.23232164]
[1646894268008,0.5,2599.0,2598.9,2.19573164]
[1646894269053,0.5,2599.0,2598.9,1.23232164]
[1646894269656,0.5,2599.0,2598.8,1.89021346]
[1646894270655,0.50281092,2599.0,2598.8,2.92918899]
[1646894270856,0.50281092,2599.0,2598.8,2.77919983]
[1646894271859,0.50562184,2599.0,2598.8,2.77919983]
[1646894272057,0.50281092,2599.0,2598.8,2.77919983]
[1646894272905,0.5,2599.0,2598.8,2.77919983]
[1646894273206,0.50281087,2599.0,2598.8,2.77919983]
[1646894273904,0.50281087,2599.0,2598.8,2.27919983]
[1646894274105,0.5,2599.0,2598.8,2.27919983]
[1646894274305,0.50281087,2599.0,2598.8,2.27919983]
[1646894274506,0.50281087,2599.0,2598.8,1.2402243]
[1646894275311,0.5,2599.0,2598.8,1.2402243]
[1646894275507,0.50281087,2599.0,2598.8,1.2402243]
[1646894276407,0.5,2599.0,2598.8,1.2402243]
[1646894276661,0.50281087,2599.0,2598.8,1.2402243]
[1646894277661,0.5,2599.0,2598.8,1.2402243]
[1646894277866,0.50281088,2599.0,2598.8,1.2402243]
[1646894278762,0.5,2599.0,2598.8,1.2402243]
[1646894279162,0.50281088,2599.0,2598.8,1.2402243]
[1646894279963,0.5,2599.0,2598.8,1.2402243]
[1646894280408,0.50281088,2599.0,2598.8,1.2402243]
[1646894281210,0.5,2599.0,2598.8,1.2402243]
[1646894281408,0.50281088,2599.0,2598.8,1.2402243]
[1646894282109,0.50281088,2599.0,2598.7,0.96341]
[1646894282508,0.5,2599.0,2598.7,0.96341]
[1646894282709,0.50281088,2599.0,2598.7,0.96341]
[1646894283109,0.50281088,2599.0,2598.8,1.92683]
[1646894283710,0.5,2599.0,2598.8,1.92683]
[1646894283913,0.50281088,2599.0,2598.8,1.92683]
[1646894284960,0.5,2599.0,2598.8,1.92683]
[1646894285160,0.50281088,2599.0,2598.8,1.92683]
[1646894286163,0.5,2599.0,2598.8,1.92683]
[1646894286365,0.50281088,2599.0,2598.8,1.92683]
[1646894287264,0.5,2599.0,2598.8,1.92683]
[1646894287464,0.50281088,2599.0,2598.8,1.92683]
[1646894288515,0.5,2599.0,2598.8,1.92683]
[1646894288714,0.50281088,2599.0,2598.8,1.92683]
[1646894289816,1.23446658,2598.9,2598.8,0.38470707]
[1646894290214,0.50281088,2599.0,2598.8,0.38470707]
[1646894290414,0.50281088,2599.0,2598.7,0.96341]
[1646894290817,0.5,2599.0,2598.7,0.96341]
[1646894291215,0.50281088,2599.0,2598.7,0.96341]
[1646894292061,0.5,2599.0,2598.7,0.96341]
[1646894292259,0.50281088,2599.0,2598.7,0.96341]
[1646894293260,0.5,2599.0,2598.7,0.96341]
[1646894293460,0.50281088,2599.0,2598.7,0.96341]
[1646894293863,0.97220316,2598.8,2598.7,0.96341]
[1646894294062,5.03990516,2598.8,2598.7,0.96341]
[1646894294261,0.97220316,2598.8,2598.5,0.96364]
[1646894294561,0.96359,2598.7,2598.5,0.96364]
[1646894296007,0.0028109,2598.7,2598.5,0.96364]
[1646894296214,0.0028109,2598.7,2598.6,0.97982754]
[1646894296816,1.46349,2599.0,2598.6,0.97982754]
[1646894297015,13.0,2598.9,2598.6,0.01618754]
[1646894297215,0.0028109,2598.8,2598.6,0.01618754]
[1646894298115,13.0,2598.9,2598.6,0.01618754]
[1646894298315,0.0028109,2598.8,2598.6,0.01618754]
[1646894298717,0.96357,2598.7,2598.5,0.96364]
[1646894299567,0.9663809,2598.7,2598.5,0.96364]
[1646894300067,0.0028109,2598.7,2598.5,0.96364]
[1646894300271,0.0028109,2598.7,2598.5,2.14121725]
[1646894300472,13.0,2598.9,2598.5,2.14121725]
[1646894300670,0.0028109,2598.7,2598.5,2.14121725]
[1646894301672,1.4635,2599.0,2598.5,2.14121725]
[1646894302073,0.0028109,2598.7,2598.5,2.14121725]
[1646894302475,0.9663809,2598.7,2598.5,2.14121725]
[1646894302918,0.96357,2598.7,2598.5,2.14121725]
[1646894303116,0.9663809,2598.7,2598.5,2.14121725]
[1646894304118,0.96357,2598.7,2598.5,1.17757725]
[1646894304319,0.9663809,2598.7,2598.5,0.86221724]
[1646894305019,0.9663809,2598.7,2598.5,0.96364]
[1646894305219,0.96357,2598.7,2598.5,0.96364]
[1646894305418,0.0028109,2598.7,2598.5,0.96364]
[1646894306421,0.96349,2598.9,2598.5,0.96364]
[1646894306665,0.0028109,2598.7,2598.5,1.94437137]
[1646894307666,0.96349,2598.9,2598.5,1.94437137]
[1646894307866,0.0028109,2598.7,2598.5,1.94437137]
[1646894308868,0.96349,2598.9,2598.5,2.01835037]
[1646894309072,0.0028109,2598.7,2598.5,2.01835037]
[1646894309669,0.0028109,2598.7,2598.5,1.94437137]
[1646894310070,0.5,2599.0,2598.5,1.94437137]
[1646894310309,0.0028109,2598.7,2598.5,1.94437137]
[1646894311314,0.5,2599.0,2598.5,1.94437137]
[1646894311518,0.0028109,2598.7,2598.5,1.94437137]
[1646894312118,0.0028109,2598.7,2598.5,1.21737137]
[1646894312519,0.5,2599.0,2598.5,1.29980409]
[1646894312719,0.0028109,2598.7,2598.5,1.29980409]
[1646894312916,0.0028109,2598.7,2598.6,0.08678362]
[1646894313817,0.5,2599.0,2598.9,1.15843338]
[1646894314079,0.5,2599.0,2598.8,0.96335]
[1646894315068,0.50281088,2599.0,2598.9,0.89233086]
[1646894315968,0.5,2599.0,2598.9,0.89233086]
[1646894319213,0.0484766,2599.4,2599.1,0.08536122]
[1646894319413,0.0484766,2599.4,2599.2,0.08323151]
[1646894319810,0.0484766,2599.4,2599.3,0.9761354]
[1646894320009,0.0484766,2599.4,2599.3,0.08380454]
[1646894320917,0.03023444,2599.6,2599.4,78.0]
[1646894321112,0.00251029,2599.5,2599.4,78.96296]
[1646894321413,0.02569748,2599.6,2599.5,82.0]
[1646894322069,0.0096748,2599.8,2599.6,91.5]
[1646894322267,0.0096748,2599.8,2599.7,1.13783417]
[1646894322467,0.5171218,2599.9,2599.8,34.5]
[1646894322668,0.5364714,2599.9,2599.8,34.5]
[1646894324368,0.5364714,2599.9,2599.7,2.10065417]
[1646894325170,0.5364714,2599.9,2599.7,0.96282]
[1646894326015,0.53933744,2599.9,2599.7,0.96282]
[1646894326214,4.52975998,2599.9,2599.7,0.96282]
[1646894326618,0.53933744,2599.9,2599.7,0.96282]
[1646894326819,0.5364714,2599.9,2599.6,3.86919363]
[1646894327221,0.53933744,2599.9,2599.6,2.88846]
[1646894328019,0.5364714,2599.9,2599.7,0.96282]
[1646894328419,0.96316,2599.8,2599.7,0.96282]
[1646894329468,0.9825096,2599.8,2599.7,0.96282]
[1646894329872,0.9825096,2599.8,2599.1,3.0999]
[1646894329873,4.962634,2599.8,2599.1,3.0999]
[1646894330269,7.9171843,2599.8,2599.1,3.0999]
[1646894330470,7.9171843,2599.8,2599.2,0.94340099]
[1646894330671,0.0193496,2599.8,2599.1,3.0999]
[1646894330877,0.00286602,2599.6,2599.1,3.0999]
[1646894331372,0.00286602,2599.6,2599.5,1.92615]
[1646894331773,0.0193496,2599.7,2599.5,1.92615]
[1646894332075,0.00286593,2599.6,2599.5,2.94951825]